bitfinex/quotes_SOLUSD_20230905
["timestamp","ask_amount","ask_price","bid_price","bid_amount"]
[1693883365650,35.514,19.13,19.12,5.711]
[1693883365857,20.0,19.129,19.117,3.0]
[1693883366158,34.508,19.126,19.117,3.0]
[1693883366447,55.0,19.125,19.117,3.0]
[1693883366649,196.101,19.123,19.099,5.717]
[1693883366848,196.101,19.123,19.093,18.477]
[1693883366849,27.36,19.11,19.093,18.477]
[1693883367156,8.165,19.105,19.078,250.0]
[1693883367454,27.36,19.1,19.089,24.201]
[1693883367757,27.36,19.1,19.089,22.701]
[1693883368053,57.575,19.106,19.089,24.201]
[1693883368054,0.97731499,19.099,19.089,24.201]
[1693883368245,8.168,19.099,19.088,41.76987447]
[1693883368449,55.0,19.098,19.083,18.486]
[1693883368747,8.169,19.095,19.082,18.488]
[1693883368945,2.87123994,19.094,19.082,18.488]
[1693883369252,8.169,19.095,19.08,40.355]
[1693883369461,59.27779799,19.094,19.081,18.488]
[1693883369643,67.44779799,19.094,19.084,5.722]
[1693883370039,4.27779799,19.094,19.084,5.722]
[1693883370240,4.27779799,19.094,19.084,5.222]
[1693883370446,4.27779799,19.098,19.085,20.0]
[1693883370650,8.167,19.1,19.088,5.72]
[1693883370847,8.167,19.1,19.089,20.0]
[1693883371046,83.959,19.105,19.089,20.0]
[1693883371358,8.167,19.102,19.09,5.719]
[1693883371560,4.5769181,19.101,19.09,5.719]
[1693883371757,8.167,19.102,19.09,5.719]
[1693883371940,8.166,19.103,19.09,5.719]
[1693883372142,27.46,19.1,19.09,5.719]
[1693883372338,2.6452675,19.099,19.09,5.719]
[1693883372542,2.6452675,19.099,19.09,5.72]
[1693883372963,57.6452675,19.099,19.09,5.72]
[1693883373457,57.6452675,19.099,19.088,5.72]
[1693883373660,65.8132675,19.099,19.085,17.485]
[1693883373844,65.8132675,19.099,19.083,18.487]
[1693883374156,10.8132675,19.099,19.086,24.205]
[1693883374464,2.6452675,19.099,19.086,24.205]
[1693883374656,2.94016773,19.1,19.086,24.205]
[1693883374859,2.94016773,19.1,19.087,75.0]
[1693883375053,11.30585332,19.102,19.09,24.2]
[1693883375355,8.167,19.1,19.09,24.2]
[1693883375758,8.168,19.099,19.09,5.72]
[1693883375958,3.04811248,19.098,19.083,18.487]
[1693883376160,8.17,19.094,19.077,42.3287958]
[1693883376360,8.17,19.094,19.07,87.49072975]
[1693883376361,91.52,19.09,19.07,15.62860135]
[1693883376657,8.174,19.084,19.073,5.725]
[1693883376854,8.174,19.084,19.072,5.725]
[1693883377250,8.174,19.084,19.071,5.725]
[1693883377455,4.56862783,19.083,19.069,5.726]
[1693883377653,8.176,19.079,19.069,5.726]
[1693883377847,8.176,19.079,19.07,3.03256745]
[1693883378050,8.176,19.079,19.068,3.58360199]
[1693883378248,8.176,19.079,19.068,2.58360199]
[1693883378857,8.176,19.079,19.068,8.30960199]
[1693883379051,8.176,19.079,19.069,20.0]
[1693883379249,8.176,19.079,19.07,2.08360199]
[1693883379760,8.176,19.079,19.07,7.80960199]
[1693883379945,8.176,19.08,19.07,7.80960199]
[1693883380147,8.176,19.08,19.07,2.08360199]
[1693883380454,8.176,19.08,19.069,2.08360199]
[1693883380656,8.176,19.08,19.066,3.06862783]
[1693883380955,8.176,19.08,19.07,3.06862783]
[1693883381157,8.176,19.08,19.068,3.06862783]
[1693883381357,92.262,19.076,19.064,3.06862783]
[1693883381544,8.177,19.076,19.065,5.727]
[1693883381743,8.177,19.076,19.066,0.61635519]
[1693883381944,45.76,19.08,19.066,5.727]
[1693883382163,8.177,19.078,19.066,5.727]
[1693883382456,8.178,19.074,19.067,20.0]
[1693883382662,8.178,19.074,19.063,24.235]
[1693883382845,8.178,19.074,19.062,1.01311763]
[1693883383048,45.76,19.07,19.062,1.01311763]
[1693883383248,34.612,19.068,19.061,235.97837189]
[1693883383652,34.612,19.068,19.061,235.47837189]
[1693883383860,60.7141284,19.068,19.061,208.99337189]
[1693883384060,27.35056546,19.067,19.061,182.61337189]
[1693883384362,47.35056546,19.067,19.061,106.61337189]
[1693883384561,55.0,19.066,19.061,106.61337189]
[1693883384763,1.24843706,19.065,19.061,106.61337189]
[1693883384951,8.183,19.064,19.061,106.61337189]
[1693883385152,91.52,19.07,19.061,106.61337189]
[1693883385350,32.07681,19.069,19.061,106.11337189]
[1693883385563,20.25681,19.069,19.061,106.11337189]
[1693883385754,20.25681,19.069,19.061,81.11337189]
[1693883386060,91.52,19.065,19.061,81.11337189]
[1693883387943,8.183,19.064,19.061,81.11337189]
[1693883388147,91.52,19.065,19.061,81.11337189]
[1693883388547,45.76,19.07,19.061,81.11337189]
[1693883389460,91.52,19.07,19.061,81.11337189]
[1693883389869,0.94866886,19.068,19.061,81.11337189]
[1693883390062,34.616,19.066,19.061,81.11337189]
[1693883390259,1.12930674,19.065,19.061,81.11337189]
[1693883390448,8.183,19.064,19.061,25.86737189]
[1693883390653,8.183,19.064,19.035,2.29697579]
[1693883390849,45.76,19.05,19.033,5.737]
[1693883391057,8.186,19.057,19.034,5.737]
[1693883391262,45.76,19.05,19.034,5.737]
[1693883391567,334.89943888,19.059,19.035,3.06862783]
[1693883391761,26.1021284,19.067,19.035,3.06862783]
[1693883391762,26.1021284,19.067,19.04,40.994]
[1693883391968,12.07681,19.066,19.042,5.734]
[1693883392159,8.18,19.071,19.049,250.0]
[1693883392472,12.07681,19.071,19.058,3.06862783]
[1693883392665,45.76,19.08,19.064,5.727]
[1693883392852,158.49730572,19.087,19.064,5.727]
[1693883393052,12.67385537,19.083,19.064,5.727]
[1693883393253,12.07681,19.083,19.065,58.06862783]
[1693883393453,158.49730572,19.087,19.07,5.726]
[1693883393771,35.55044461,19.098,19.071,3.06862783]
[1693883393953,27.38244461,19.098,19.079,5.723]
[1693883394154,76.572628,19.096,19.08,3.06862783]
[1693883394449,76.572628,19.096,19.07,22.94]
[1693883394450,8.173,19.087,19.07,5.726]
[1693883394656,8.172,19.09,19.077,5.724]
[1693883394966,8.172,19.09,19.074,5.724]
[1693883395160,8.172,19.09,19.067,3.06862783]
[1693883395362,20.0,19.089,19.061,3.06862783]
[1693883395560,8.175,19.081,19.066,6.545]
[1693883395962,8.175,19.081,19.067,3.06862783]
[1693883396468,8.175,19.081,19.032,985.1]
[1693883396469,8.179,19.073,19.048,3.06862783]
[1693883396654,20.0,19.08,19.063,6.546]
[1693883396972,8.171,19.091,19.07,22.94]
[1693883397267,250.0,19.1,19.07,22.94]
[1693883397268,8.17,19.093,19.082,6.54]
[1693883397452,8.17,19.093,19.08,22.94]
[1693883397651,180.57686734,19.097,19.082,6.539]
[1693883397652,1.01924748,19.095,19.082,6.539]
[1693883397860,1.01924748,19.095,19.08,22.94]
[1693883398055,8.169,19.096,19.08,22.94]
[1693883398056,8.17,19.094,19.08,22.94]
[1693883398376,160.57686734,19.097,19.081,61.54]
[1693883398564,160.57686734,19.097,19.08,22.94]
[1693883398565,8.168,19.097,19.082,1.04943887]
[1693883398758,8.168,19.097,19.081,1.14404746]
[1693883398970,1.12221832,19.096,19.073,6.543]
[1693883399263,8.172,19.09,19.074,57.40894011]
[1693883399654,8.17,19.093,19.08,22.94]
[1693883399854,20.0,19.092,19.08,22.94]
[1693883400157,8.17,19.093,19.081,55.66089027]
[1693883400356,8.169,19.096,19.081,61.54]
[1693883400658,8.169,19.096,19.082,1.44776504]
[1693883401170,8.169,19.096,19.07,24.92795839]
[1693883401465,20.0,19.095,19.07,24.92795839]
[1693883401668,8.172,19.088,19.07,24.92795839]
[1693883402169,8.172,19.088,19.07,1.98795839]
[1693883402470,8.172,19.088,19.069,22.0613973]
[1693883402665,8.172,19.088,19.07,22.94]
[1693883402870,20.0,19.095,19.073,6.543]
[1693883403165,20.0,19.095,19.07,22.94]
[1693883403166,159.97024768,19.099,19.081,6.54]
[1693883403370,168.13824768,19.099,19.082,2.0613973]
[1693883403666,168.13824768,19.099,19.081,6.54]
[1693883403963,168.13824768,19.099,19.08,2.0613973]
[1693883404358,168.13824768,19.099,19.08,63.6013973]
[1693883404565,8.168,19.099,19.08,63.6013973]
[1693883404962,8.168,19.099,19.08,86.5413973]
[1693883405561,8.168,19.099,19.08,63.6013973]
[1693883405871,8.168,19.099,19.08,57.0613973]
[1693883406068,8.168,19.099,19.077,7.359]
[1693883406256,47.2340245,19.098,19.078,0.74479422]
[1693883406455,47.2340245,19.098,19.06,116.906]
[1693883406456,250.0,19.091,19.065,7.363]
[1693883406656,34.584,19.084,19.066,3.06862783]
[1693883406969,20.0,19.083,19.066,7.363]
[1693883407178,57.61,19.094,19.066,7.363]
[1693883407363,8.172,19.088,19.07,22.94]
[1693883407669,8.172,19.088,19.075,7.36]
[1693883408177,8.172,19.088,19.076,0.69844957]
[1693883408472,8.172,19.088,19.07,46.725]
[1693883408473,8.172,19.088,19.078,7.359]
[1693883409069,12.07681,19.098,19.079,55.0]
[1693883409379,8.169,19.096,19.084,7.356]
[1693883409874,8.169,19.096,19.076,55.0]
[1693883410077,65.772,19.096,19.079,7.358]
[1693883411075,55.0,19.095,19.079,7.358]
[1693883411372,8.171,19.091,19.071,1.96659935]
[1693883411860,92.222,19.085,19.066,7.363]
[1693883412061,8.176,19.079,19.067,7.363]
[1693883412263,8.176,19.079,19.061,2.45940514]
[1693883412564,34.603,19.073,19.056,3.06862783]
[1693883412763,8.179,19.073,19.056,23.803]
[1693883412964,8.179,19.073,19.057,3.06862783]
[1693883413179,8.179,19.073,19.057,10.43562783]
[1693883413378,20.0,19.072,19.057,10.43562783]
[1693883413676,8.18,19.071,19.057,10.43562783]
[1693883413874,26.419,19.077,19.057,10.43562783]
[1693883414065,57.65,19.081,19.057,10.43562783]
[1693883414265,8.176,19.079,19.057,10.43562783]
[1693883414471,8.176,19.079,19.064,31.157]
[1693883414665,250.0,19.102,19.06,22.94]
[1693883414666,93.995,19.085,19.07,31.147]
[1693883414872,26.406,19.087,19.071,58.06862783]
[1693883415182,8.174,19.084,19.071,58.06862783]
[1693883415377,8.174,19.084,19.071,3.06862783]
[1693883415582,8.174,19.084,19.073,7.36]
[1693883416678,8.173,19.086,19.074,55.0]
[1693883416879,8.173,19.086,19.077,7.359]
[1693883418066,8.173,19.086,19.077,6.859]
[1693883418375,8.173,19.086,19.074,7.36]
[1693883419371,8.173,19.087,19.075,0.86237777]
[1693883419575,26.397,19.093,19.081,7.357]
[1693883419880,8.171,19.091,19.081,7.357]
[1693883420261,8.171,19.091,19.084,7.356]
[1693883421282,8.17,19.093,19.084,7.356]
[1693883421480,7.64479,19.093,19.084,7.356]
[1693883421982,8.17,19.094,19.084,7.356]
[1693883422371,57.593,19.1,19.085,55.0]
[1693883422568,8.17,19.094,19.087,7.355]
[1693883422976,57.581,19.104,19.088,55.0]
[1693883423169,26.389,19.099,19.09,7.354]
[1693883423374,34.556,19.099,19.088,55.0]
[1693883423689,8.167,19.099,19.089,31.116]
[1693883424267,8.167,19.099,19.092,7.353]
[1693883425491,8.166,19.103,19.093,55.0]
[1693883425671,92.0492,19.106,19.096,7.352]
[1693883425987,8.166,19.103,19.096,7.352]
[1693883426374,8.165,19.104,19.097,55.0]
[1693883426687,92.0492,19.106,19.097,62.351]
[1693883427070,26.375,19.109,19.097,62.351]
[1693883427266,57.544,19.116,19.1,22.94]
[1693883427480,57.544,19.116,19.105,7.348]
[1693883427481,26.367,19.115,19.105,7.348]
[1693883427680,8.162,19.111,19.103,7.349]
[1693883427888,8.162,19.111,19.102,7.349]
[1693883428087,8.162,19.111,19.103,55.0]
[1693883428277,8.162,19.113,19.103,7.349]
[1693883428487,8.162,19.113,19.104,55.0]
[1693883428789,8.162,19.113,19.105,7.348]
[1693883429186,92.9221,19.118,19.106,55.0]
[1693883429380,8.16,19.117,19.107,7.348]
[1693883429571,8.16,19.117,19.108,55.0]
[1693883430085,8.16,19.117,19.109,7.347]
[1693883430289,8.16,19.117,19.11,55.0]
[1693883430777,8.16,19.117,19.109,55.0]
[1693883431775,8.16,19.117,19.109,62.347]
[1693883431973,8.16,19.117,19.109,55.0]
[1693883432295,8.16,19.117,19.109,62.347]
[1693883432481,8.158,19.121,19.109,86.084]
[1693883432783,8.157,19.124,19.11,22.94]
[1693883432992,8.157,19.125,19.114,31.076]
[1693883433282,8.157,19.125,19.115,55.0]
[1693883433484,8.157,19.125,19.116,7.344]
[1693883433685,8.157,19.125,19.117,55.0]
[1693883433872,8.157,19.125,19.119,7.343]
[1693883434181,8.157,19.125,19.115,23.728]
[1693883434391,8.157,19.125,19.116,55.0]
[1693883434980,8.157,19.125,19.117,7.344]
[1693883435181,8.157,19.125,19.118,55.0]
[1693883435377,8.157,19.125,19.119,7.343]
[1693883436176,119.2243,19.129,19.119,7.343]
[1693883436384,8.156,19.126,19.119,7.343]
[1693883438988,8.156,19.126,19.121,7.342]
[1693883439385,154.98589527,19.141,19.122,55.0]
[1693883439386,8.155,19.128,19.122,55.0]
[1693883439585,8.152,19.135,19.123,31.06]
[1693883439792,117.7016,19.14,19.124,55.0]
[1693883440090,8.152,19.136,19.128,31.052]
[1693883440293,8.152,19.137,19.131,7.338]
[1693883440492,8.152,19.137,19.13,7.339]
[1693883440690,8.152,19.137,19.124,55.0]
[1693883440883,8.152,19.137,19.127,7.34]
[1693883441087,8.152,19.137,19.124,55.0]
[1693883441088,8.152,19.137,19.128,62.339]
[1693883441280,8.152,19.137,19.128,7.339]
[1693883441986,8.152,19.137,19.129,55.0]
[1693883442497,8.152,19.137,19.127,7.34]
[1693883442691,8.152,19.137,19.128,55.0]
[1693883442890,8.152,19.137,19.126,7.34]
[1693883443188,55.0,19.136,19.125,7.341]
[1693883443390,34.495,19.133,19.125,7.341]
[1693883443689,34.495,19.133,19.123,7.341]
[1693883445081,8.153,19.133,19.123,31.061]
[1693883445284,8.153,19.134,19.128,7.339]
[1693883445691,8.153,19.134,19.124,55.0]
[1693883445887,8.153,19.134,19.126,7.34]
[1693883446876,91.3686,19.14,19.129,7.339]
[1693883447299,8.152,19.136,19.129,7.339]
[1693883448891,8.152,19.136,19.13,55.0]
[1693883449393,8.152,19.136,19.129,55.0]
[1693883449589,8.152,19.136,19.127,23.714]
[1693883449894,8.152,19.136,19.128,55.0]
[1693883450096,8.152,19.136,19.129,7.339]
[1693883451094,8.152,19.136,19.128,7.339]
[1693883451289,8.152,19.136,19.124,23.718]
[1693883451491,8.152,19.136,19.127,7.34]
[1693883452396,8.152,19.136,19.12,26.1021284]
[1693883452699,75.0,19.135,19.116,23.728]
[1693883452904,92.005,19.13,19.119,31.068]
[1693883453998,34.502,19.13,19.119,31.068]
[1693883454305,195.3436,19.14,19.12,55.0]
[1693883454596,8.153,19.135,19.126,7.34]
[1693883454810,8.153,19.135,19.124,7.341]
[1693883455403,8.153,19.135,19.12,26.1021284]
[1693883455903,8.153,19.135,19.123,7.341]
[1693883456703,8.153,19.135,19.126,7.34]
[1693883456887,8.153,19.135,19.125,7.341]
[1693883457293,8.153,19.135,19.123,23.719]
[1693883457294,112.15,19.135,19.122,7.341]
[1693883457487,112.15,19.135,19.12,33.4441284]
[1693883457689,112.15,19.135,19.121,7.342]
[1693883458014,75.0,19.134,19.121,7.342]
[1693883458201,92.0,19.131,19.121,7.342]
[1693883458399,20.0,19.13,19.121,7.342]
[1693883458706,34.504,19.128,19.121,7.342]
[1693883460194,57.487,19.135,19.121,7.342]
[1693883460391,1230.6,19.153,19.128,7.34]
[1693883460392,57.478,19.138,19.128,7.34]
[1693883460689,8.153,19.133,19.127,7.34]
[1693883460889,8.153,19.133,19.126,7.34]
[1693883461303,8.153,19.134,19.127,55.0]
[1693883461508,8.153,19.134,19.129,7.339]
[1693883462104,8.152,19.135,19.129,7.339]
[1693883462697,8.152,19.135,19.126,55.0]
[1693883462902,65.638,19.135,19.122,101.5941284]
[1693883463093,65.638,19.135,19.122,77.8741284]
[1693883463294,65.638,19.135,19.126,7.34]
[1693883463504,65.638,19.135,19.119,51.78]
[1693883463699,169.635,19.135,19.118,26.1021284]
[1693883463900,75.5311479,19.134,19.118,7.343]
[1693883464108,92.005,19.13,19.118,7.343]
[1693883464496,96.5928,19.129,19.118,7.343]
[1693883464695,34.507,19.126,19.118,7.343]
[1693883465813,26.347,19.13,19.118,7.343]
[1693883466007,8.156,19.126,19.118,7.343]
[1693883466704,96.5928,19.131,19.117,23.726]
[1693883466705,96.5928,19.131,19.117,7.343]
[1693883466907,8.156,19.126,19.117,59.129]
[1693883467107,8.156,19.127,19.117,59.129]
[1693883467912,495.474,19.14,19.118,81.1021284]
[1693883468214,8.153,19.134,19.124,82.825]
[1693883468413,8.153,19.134,19.125,55.0]
[1693883468604,8.153,19.134,19.125,62.34]
[1693883469610,8.153,19.134,19.125,7.34]
[1693883469820,1.01359049,19.133,19.116,7.344]
[1693883470018,1.01359049,19.133,19.11,51.804]
[1693883470019,196.048,19.128,19.115,7.344]
[1693883470200,92.012,19.128,19.115,31.074]
[1693883470401,8.157,19.125,19.115,31.074]
[1693883471109,98.105,19.127,19.115,31.074]
[1693883471310,106.261,19.127,19.115,124.77]
[1693883471920,8.156,19.127,19.115,31.074]
[1693883472303,8.156,19.127,19.116,55.0]
[1693883472504,8.156,19.127,19.119,7.343]
[1693883472804,8.156,19.127,19.12,62.342]
[1693883474716,8.156,19.127,19.12,55.0]
[1693883474909,8.156,19.127,19.118,7.343]
[1693883475218,8.156,19.127,19.119,55.0]
[1693883475522,8.156,19.127,19.12,7.342]
[1693883476319,8.156,19.127,19.119,55.0]
[1693883476715,8.156,19.127,19.119,62.343]
[1693883476916,8.156,19.127,19.117,7.343]
[1693883477104,8.156,19.127,19.113,23.731]
[1693883477521,8.156,19.127,19.117,7.344]
[1693883478712,8.156,19.127,19.117,31.071]
[1693883478912,8.156,19.127,19.12,7.342]
[1693883479312,8.156,19.127,19.119,7.343]
[1693883479515,8.156,19.127,19.118,62.343]
[1693883479707,8.156,19.127,19.118,55.0]
[1693883480020,8.156,19.127,19.118,62.343]
[1693883480229,8.156,19.127,19.113,23.732]
[1693883480416,8.156,19.127,19.114,55.0]
[1693883481124,8.156,19.127,19.116,7.344]
[1693883481308,8.156,19.127,19.118,7.343]
[1693883482216,8.156,19.127,19.116,7.344]
[1693883482418,8.156,19.127,19.12,7.343]
[1693883483213,8.156,19.127,19.118,7.343]
[1693883483421,8.156,19.127,19.119,55.0]
[1693883483618,8.156,19.127,19.119,62.343]
[1693883484924,8.156,19.127,19.119,55.0]
[1693883485324,8.156,19.127,19.119,62.343]
[1693883485716,8.156,19.127,19.119,55.0]
[1693883485914,8.156,19.127,19.119,62.343]
[1693883487006,8.156,19.127,19.119,55.0]
[1693883487420,8.156,19.127,19.118,55.0]
[1693883488046,8.156,19.127,19.111,26.1021284]
[1693883488230,8.156,19.127,19.114,7.345]
[1693883489513,8.156,19.127,19.115,55.0]
[1693883489726,8.156,19.127,19.116,7.344]
[1693883489918,8.156,19.127,19.117,55.0]
[1693883490228,8.156,19.127,19.119,7.343]
[1693883490627,8.156,19.127,19.115,23.729]
[1693883491028,8.156,19.127,19.116,55.0]
[1693883491229,8.156,19.127,19.116,62.344]
[1693883492229,8.156,19.127,19.116,86.072]
[1693883493831,8.155,19.129,19.116,86.072]
[1693883494022,8.155,19.128,19.116,86.072]
[1693883495734,8.155,19.128,19.116,62.344]
[1693883498736,8.155,19.128,19.116,55.0]
[1693883499318,8.155,19.128,19.116,62.344]
[1693883501542,8.155,19.128,19.108,51.808]
[1693883501841,8.155,19.128,19.104,93.747]
[1693883501842,55.0,19.127,19.11,7.346]
[1693883502035,92.04,19.122,19.111,20.0]
[1693883502340,92.04,19.122,19.104,75.561]
[1693883502341,20.0,19.121,19.104,75.561]
[1693883502636,20.0,19.121,19.1,71.7121284]
[1693883502637,92.068,19.116,19.105,7.348]
[1693883503021,196.211,19.112,19.097,23.751]
[1693883503222,196.211,19.112,19.1,7.35]
[1693883503436,196.211,19.112,19.101,20.0]
[1693883503635,196.211,19.112,19.098,23.75]
[1693883503821,196.211,19.112,19.077,52.08]
[1693883503822,92.131,19.104,19.087,51.867]
[1693883504141,92.131,19.104,19.083,93.851]
[1693883504142,92.131,19.104,19.085,7.356]
[1693883504318,92.16,19.097,19.084,7.356]
[1693883504521,34.559,19.097,19.084,82.999]
[1693883505729,34.559,19.097,19.084,31.124]
[1693883506141,8.168,19.097,19.084,31.124]
[1693883507548,8.168,19.097,19.085,55.0]
[1693883507729,8.168,19.097,19.088,7.355]
[1693883508135,8.168,19.097,19.088,31.118]
[1693883508446,8.168,19.097,19.088,7.355]
[1693883509123,8.168,19.097,19.086,7.355]
[1693883512849,8.168,19.097,19.085,7.356]
[1693883513149,8.17,19.093,19.085,7.356]
[1693883513337,8.17,19.093,19.08,23.773]
[1693883513524,65.782,19.093,19.083,7.357]
[1693883513944,8.17,19.093,19.083,31.126]
[1693883514244,8.17,19.094,19.083,31.126]
[1693883514546,26.391,19.097,19.084,55.0]
[1693883514749,8.169,19.095,19.087,7.355]
[1693883515547,8.17,19.094,19.081,23.771]
[1693883515751,8.17,19.094,19.084,7.356]
[1693883515949,55.0,19.093,19.072,93.904]
[1693883516251,8.173,19.087,19.078,7.359]
[1693883516429,8.172,19.089,19.079,20.0]
[1693883516628,8.171,19.091,19.082,7.357]
[1693883519450,8.171,19.092,19.082,7.357]
[1693883519850,137.8593,19.1,19.082,59.238]
[1693883520052,137.8593,19.1,19.083,56.75839547]
[1693883520251,100.4163,19.1,19.088,31.118]
[1693883520438,100.4163,19.1,19.089,55.0]
[1693883520639,100.4163,19.1,19.092,7.353]
[1693883521052,92.2493,19.1,19.092,31.111]
[1693883521553,26.375,19.109,19.092,31.111]
[1693883521745,103.3775,19.108,19.093,55.0]
[1693883521954,103.3775,19.108,19.097,31.102]
[1693883522133,156.49362556,19.11,19.097,31.102]
[1693883522535,156.49362556,19.11,19.098,55.0]
[1693883522847,156.49362556,19.11,19.101,7.35]
[1693883523246,156.49362556,19.11,19.102,55.0]
[1693883523444,156.49362556,19.11,19.104,82.912]
[1693883523756,156.49362556,19.11,19.106,31.088]
[1693883523942,71.97,19.12,19.106,31.088]
[1693883524135,8.161,19.116,19.106,31.088]
[1693883524338,8.161,19.116,19.106,7.348]
[1693883524752,8.161,19.116,19.099,93.772]
[1693883524753,8.161,19.116,19.101,7.35]
[1693883524955,0.77635023,19.115,19.101,7.35]
[1693883525265,8.162,19.111,19.098,6.534]
[1693883525442,100.61,19.11,19.093,55.0]
[1693883525636,34.545,19.105,19.089,67.219]
[1693883525861,34.545,19.105,19.093,6.536]
[1693883526355,8.165,19.105,19.093,6.536]
[1693883526555,8.164,19.107,19.093,6.536]
[1693883526855,8.165,19.106,19.093,6.536]
[1693883527151,8.164,19.107,19.093,6.536]
[1693883527454,8.166,19.103,19.093,6.536]
[1693883527956,55.0,19.106,19.08,61.65607329]
[1693883528154,8.166,19.103,19.081,23.06862783]
[1693883528349,75.0,19.102,19.085,21.126]
[1693883528545,75.0,19.102,19.082,21.129]
[1693883528546,34.559,19.097,19.082,21.129]
[1693883528751,55.0,19.096,19.082,21.129]
[1693883529054,55.0,19.096,19.085,6.538]
[1693883529244,8.17,19.095,19.085,6.538]
[1693883530961,8.17,19.095,19.084,6.539]
[1693883531152,8.17,19.095,19.081,20.0]
[1693883531457,8.171,19.091,19.084,6.539]
[1693883532146,26.394,19.095,19.083,21.127]
[1693883532349,8.17,19.093,19.084,6.539]
[1693883532652,26.392,19.097,19.084,61.539]
[1693883532848,8.169,19.095,19.084,6.539]
[1693883533048,8.169,19.095,19.088,6.538]
[1693883533444,8.169,19.096,19.088,6.538]
[1693883533646,103.3923,19.099,19.088,6.538]
[1693883534056,103.3923,19.099,19.092,6.536]
[1693883534963,103.3923,19.099,19.087,67.225]
[1693883535144,8.168,19.099,19.087,67.225]
[1693883536249,98.4926,19.101,19.091,6.536]
[1693883536562,8.167,19.099,19.091,6.536]
[1693883536768,8.167,19.099,19.088,21.122]
[1693883536944,8.167,19.099,19.091,6.537]
[1693883537253,8.167,19.099,19.088,21.122]
[1693883538457,8.167,19.099,19.091,6.537]
[1693883539560,8.167,19.099,19.091,5.037]
[1693883540964,26.378,19.107,19.092,55.0]
[1693883541263,8.165,19.104,19.096,27.648]
[1693883541865,122.2063,19.109,19.097,55.0]
[1693883542057,8.164,19.107,19.1,6.533]
[1693883542360,57.555,19.112,19.1,6.533]
[1693883542550,8.163,19.11,19.1,52.606]
[1693883543153,8.163,19.11,19.1,6.533]
[1693883544052,8.163,19.11,19.097,76.112]
[1693883544248,53.773,19.11,19.094,46.087]
[1693883544454,92.122,19.105,19.095,6.535]